bitfinex/quotes_ETHUSD_20250525
["timestamp","ask_amount","ask_price","bid_price","bid_amount"]
[1748189224278,0.43691102,2500.8,2500.2,0.7925]
[1748189224992,0.55,2500.7,2500.2,0.7925]
[1748189226402,1.3361,2500.7,2500.1,4.69]
[1748189226583,0.04999327,2500.6,2500.1,4.69]
[1748189226787,0.55,2500.5,2500.1,4.69]
[1748189226985,0.55,2500.5,2500.1,0.02]
[1748189227186,8.61360542,2500.2,2500.1,0.02]
[1748189227384,12.60460542,2500.2,2500.1,0.02]
[1748189228175,3.991,2500.2,2500.1,0.02]
[1748189228375,4.52371,2500.2,2500.1,0.02]
[1748189229113,0.53271,2500.2,2500.1,0.02]
[1748189229313,5.07371,2500.2,2500.1,0.02]
[1748189229825,3.991,2500.5,2500.1,0.02]
[1748189229970,3.991,2500.5,2500.2,0.8129]
[1748189230918,3.992,2500.6,2500.2,0.8129]
[1748189231277,0.55,2500.8,2500.2,0.8129]
[1748189231499,0.38041841,2501.0,2500.2,0.8129]
[1748189231817,3.992,2501.0,2500.2,0.8129]
[1748189232187,3.992,2500.9,2500.2,0.8129]
[1748189233291,4.3912,2500.9,2500.2,0.8129]
[1748189233496,0.55,2500.8,2500.2,0.8129]
[1748189233797,0.55,2500.8,2500.1,0.02]
[1748189235316,3.992,2500.7,2500.2,0.7758]
[1748189236125,0.7614,2501.1,2500.2,0.7758]
[1748189236347,0.97695164,2501.1,2500.2,0.7758]
[1748189236530,3.992,2501.0,2500.2,0.7758]
[1748189237144,0.55,2500.9,2500.2,0.7758]
[1748189237322,0.55,2500.9,2500.4,8.0]
[1748189238170,3.992,2501.0,2500.4,8.0]
[1748189238618,3.992,2501.0,2500.3,4.671]
[1748189238817,0.45418549,2500.9,2500.3,4.671]
[1748189239044,4.39619868,2500.9,2500.2,0.7758]
[1748189239248,0.55,2500.8,2500.1,0.02]
[1748189239451,0.55,2500.8,2500.2,8.0]
[1748189239627,0.49461987,2500.7,2500.2,8.0]
[1748189239823,0.49461987,2500.7,2500.1,4.691]
[1748189240036,0.04999351,2500.6,2500.1,4.691]
[1748189240210,0.55,2500.6,2500.1,4.691]
[1748189241255,1.29181987,2500.7,2500.1,4.691]
[1748189243365,0.49461987,2500.7,2500.1,4.691]
[1748189243659,3.992,2500.7,2500.1,4.691]
[1748189244061,3.992,2500.7,2500.3,0.8058]
[1748189244438,3.992,2500.8,2500.3,0.8058]
[1748189244622,0.38104866,2501.0,2500.3,0.8058]
[1748189244827,3.992,2500.9,2500.3,0.8058]
[1748189245026,0.38104866,2501.0,2500.3,0.8058]
[1748189245765,3.992,2501.1,2500.3,0.8058]
[1748189248657,0.7577,2501.6,2500.3,0.8058]
[1748189248856,3.992,2501.2,2500.3,0.8058]
[1748189249847,0.38935898,2501.6,2500.3,0.8058]
[1748189250175,3.992,2501.6,2500.5,0.8222]
[1748189252079,3.991,2501.6,2500.5,0.8222]
[1748189253084,3.991,2501.7,2500.6,0.01005687]
[1748189253245,3.991,2501.7,2500.7,0.7868]
[1748189253451,3.991,2501.7,2501.0,0.7868]
[1748189253647,4.541,2502.0,2501.0,0.7868]
[1748189253875,0.47667798,2502.4,2501.0,0.7868]
[1748189254184,0.38078287,2502.2,2501.2,0.7868]
[1748189255353,0.38078287,2502.2,2501.3,8.61360542]
[1748189255558,3.991,2502.7,2501.5,0.7805]
[1748189255765,0.3991,2502.6,2501.8,0.7805]
[1748189259676,0.55,2502.3,2501.5,4.639]
[1748189259878,0.55,2502.3,2501.7,0.7805]
[1748189260298,4.54,2502.3,2501.7,0.7805]
[1748189260809,3.99,2502.3,2501.7,0.7805]
[1748189261471,1.7433,2502.6,2501.7,0.7805]
[1748189261665,0.7942,2502.8,2501.7,0.7805]
[1748189261916,0.05,2502.9,2501.9,0.7581]
[1748189262204,0.05,2502.9,2502.1,0.7581]
[1748189262374,0.05,2502.9,2502.2,4.639]
[1748189262564,0.05,2502.9,2502.3,8.7581]
[1748189263832,0.50394297,2502.9,2502.3,8.7581]
[1748189264030,0.454,2502.9,2502.3,8.7581]
[1748189264193,0.04994559,2502.8,2502.3,0.7581]
[1748189264394,0.04995103,2502.8,2502.3,0.7581]
[1748189264617,0.55,2502.7,2502.3,0.7581]
[1748189264791,1.3442,2502.7,2502.1,4.639]
[1748189265228,0.55,2502.5,2501.8,4.639]
[1748189265434,0.45989226,2502.4,2501.8,4.639]
[1748189265593,3.989,2502.5,2501.9,0.7504]
[1748189265790,0.05,2502.9,2502.0,0.7504]
[1748189267236,0.05,2502.9,2502.2,0.7504]
[1748189272043,0.05,2502.9,2502.3,4.638]
[1748189272340,0.05,2502.9,2502.2,0.7504]
[1748189272542,0.05,2502.9,2502.4,4.638]
[1748189272747,0.09994543,2502.9,2502.4,4.638]
[1748189273267,0.05,2502.9,2502.4,4.638]
[1748189274348,0.05,2502.9,2502.2,0.7504]
[1748189274556,0.05,2502.9,2502.3,4.638]
[1748189279822,1.3315,2502.5,2501.6,4.638]
[1748189280060,0.99451054,2502.4,2501.7,0.7527]
[1748189280259,3.989,2502.5,2501.7,8.0]
[1748189280463,3.989,2502.5,2501.8,0.776]
[1748189281969,3.989,2502.6,2501.8,0.776]
[1748189282133,3.989,2502.6,2500.5,0.776]
[1748189282134,0.8243,2501.5,2500.5,0.776]
[1748189282479,0.8243,2501.1,2500.1,0.796]
[1748189282635,0.55,2501.0,2500.1,0.796]
[1748189282840,0.04999253,2500.9,2500.1,8.796]
[1748189283031,0.55,2500.8,2500.1,8.796]
[1748189284440,0.59999073,2501.0,2500.1,8.02]
[1748189284647,0.55,2500.8,2500.1,8.02]
[1748189284856,1.059,2500.8,2500.1,8.02]
[1748189285067,1.059,2500.8,2500.1,0.02]
[1748189285655,1.059,2500.8,2500.1,8.02]
[1748189285975,1.059,2500.8,2500.1,0.02]
[1748189286553,1.059,2500.8,2500.2,4.604]
[1748189286954,1.45923309,2500.8,2500.2,4.604]
[1748189287152,0.54492331,2500.7,2500.1,0.02]
[1748189287338,0.54492331,2500.7,2500.3,4.604]
[1748189287896,0.40023309,2500.8,2500.3,4.604]
[1748189288200,4.8143,2501.1,2500.4,0.8069]
[1748189289404,5.2089339,2501.1,2500.4,0.8069]
[1748189290690,5.2089339,2501.1,2500.4,8.8069]
[1748189293213,0.3946339,2501.1,2500.4,8.8069]
[1748189293578,0.40042149,2501.1,2500.4,8.8069]
[1748189293792,3.991,2501.3,2500.4,8.8069]
[1748189294007,0.7533,2501.4,2500.4,8.8069]
[1748189294271,3.991,2501.5,2500.5,0.7803]
[1748189294604,4.46543,2501.5,2500.5,0.7803]
[1748189295309,0.47443,2501.5,2500.5,0.7803]
[1748189295473,3.991,2501.9,2500.7,0.8254]
[1748189295814,3.991,2502.0,2500.9,0.8254]
[1748189295967,3.991,2502.0,2501.1,8.0]
[1748189296173,0.3991,2501.9,2501.1,8.0]
[1748189296478,0.8128,2501.8,2501.2,4.604]
[1748189296667,4.38299019,2502.0,2501.2,4.604]
[1748189296867,4.95756921,2502.0,2501.3,0.8254]
[1748189297067,0.39199019,2502.0,2501.3,8.8254]
[1748189297310,0.55,2502.0,2501.3,8.8254]
[1748189297696,0.94929287,2502.0,2501.3,8.8254]
[1748189300099,0.39929287,2502.0,2501.3,8.8254]
[1748189300311,10.9728,2502.4,2501.3,8.8254]
[1748189300516,5.054705,2502.3,2501.3,8.8254]
[1748189300692,4.04095796,2502.3,2501.3,8.8254]
[1748189301421,3.991,2502.3,2501.3,8.8254]
[1748189301622,4.3943622,2502.3,2501.3,8.8254]
[1748189302128,4.44432019,2502.3,2501.4,4.604]
[1748189303327,4.3943622,2502.3,2501.4,4.604]
[1748189303527,0.52071622,2502.2,2501.4,4.604]
[1748189304135,0.38277475,2502.6,2501.6,0.7632]
[1748189304304,0.05,2502.9,2502.6,0.7632]
[1748189304506,0.05,2502.9,2502.8,8.7847]
[1748189304831,0.05,2502.9,2502.8,16.40912674]
[1748189305926,0.05,2502.9,2502.8,25.006303]
[1748189306127,0.05,2502.9,2502.8,23.34574951]
[1748189306314,0.05,2502.9,2502.8,21.98487626]
[1748189307020,0.05,2502.9,2502.8,23.34514539]
[1748189307629,0.05,2502.9,2502.8,28.54803864]
[1748189308910,0.05,2502.9,2502.8,28.9532205]
[1748189311439,0.05,2502.9,2502.8,24.9632205]
[1748189311741,0.05,2502.9,2502.8,28.9512205]
[1748189312448,0.05,2502.9,2502.8,37.5672205]
[1748189312613,0.05,2502.9,2502.8,38.1172205]
[1748189313303,0.05,2502.9,2502.8,39.27621756]
[1748189313544,0.05,2503.9,2503.0,0.55]
[1748189313710,0.05,2503.9,2503.7,8.7847]
[1748189313912,0.05,2503.9,2503.8,14.04826913]
[1748189315747,0.05,2503.9,2503.8,14.83296913]
[1748189316950,0.05,2503.9,2503.8,10.14496913]
[1748189317155,0.05,2503.9,2503.8,14.83296913]
[1748189318166,0.05,2503.9,2503.8,16.04586238]
[1748189319416,0.05,2503.9,2503.8,16.59586238]
[1748189320149,0.05,2503.9,2503.8,20.58186238]
[1748189320356,0.05,2503.9,2503.8,19.22159325]
[1748189320851,0.05,2503.9,2503.8,19.91630644]
[1748189321053,0.05,2503.9,2503.8,20.11424142]
[1748189322979,0.05,2504.9,2504.1,0.55]
[1748189323147,0.05,2504.9,2504.7,0.7615]
[1748189323480,0.05,2504.9,2504.8,13.89889325]
[1748189323980,0.05,2504.9,2504.8,22.49606951]
[1748189324886,0.05,2504.9,2504.8,9.21289325]
[1748189325047,0.05,2504.9,2504.8,12.686]
[1748189326182,0.05,2504.9,2504.8,12.685]
[1748189326688,0.05,2504.9,2504.8,8.0]
[1748189326839,0.05,2504.9,2504.8,12.685]
[1748189327353,0.05,2504.9,2504.8,8.0]
[1748189327677,0.05,2504.9,2504.8,12.685]
[1748189328542,0.05,2504.9,2504.8,8.0]
[1748189328880,0.05,2504.9,2504.8,12.685]
[1748189331156,0.05,2504.9,2504.8,8.0]
[1748189331489,0.05,2504.9,2504.8,12.685]
[1748189332964,0.8067,2504.9,2504.8,4.685]
[1748189335064,0.05,2504.9,2504.8,4.685]
[1748189335308,0.05,2504.9,2504.8,12.685]
[1748189335481,0.05,2504.9,2504.8,13.89789325]
[1748189335675,0.05,2504.9,2504.8,22.49506951]
[1748189336207,0.05,2504.9,2504.8,23.9500827]
[1748189339647,0.05,2504.9,2504.8,19.2650827]
[1748189339811,0.05,2504.9,2504.8,27.9330827]
[1748189340355,0.05,2504.9,2504.8,19.2650827]
[1748189340561,0.05,2504.9,2504.8,19.33590644]
[1748189340921,0.05,2504.9,2504.8,9.90760644]
[1748189341217,0.05,2504.9,2504.8,14.59160644]
[1748189341722,0.05,2504.9,2504.8,5.89689325]
[1748189341953,0.05,2504.9,2504.8,13.89689325]
[1748189344333,0.05,2504.9,2504.8,14.59160644]
[1748189344747,0.05,2504.9,2504.8,15.36060644]
[1748189345546,0.05,2504.9,2504.8,10.67660644]
[1748189345883,0.05,2504.9,2504.8,15.25160644]
[1748189346255,0.05,2504.9,2504.8,14.48260644]
[1748189346453,0.05,2504.9,2504.8,8.69471319]
[1748189346653,0.05,2504.9,2504.8,12.575]
[1748189346853,0.05,2504.9,2504.8,13.26971319]
[1748189347060,0.05,2504.9,2504.8,13.93979486]
[1748189347984,0.05,2504.9,2504.8,14.73759486]
[1748189349592,0.05,2504.9,2504.8,10.16259486]
[1748189349751,0.05,2504.9,2504.8,14.73759486]
[1748189351357,0.05,2505.9,2504.9,8.7763]
[1748189351556,0.05,2505.9,2505.5,0.7763]
[1748189351784,0.05,2505.9,2505.7,8.0]
[1748189353701,0.05,2505.9,2505.6,0.69471319]
[1748189353995,0.05,2505.9,2505.7,4.574]
[1748189354995,0.05,2505.9,2505.8,12.574]
[1748189355200,0.3817,2506.1,2505.8,12.574]
[1748189355368,0.3817,2506.1,2505.1,1.47101319]
[1748189355557,0.55,2506.0,2505.2,4.574]
[1748189355757,0.55,2506.0,2505.3,8.0]
[1748189356086,0.55,2506.0,2505.2,4.574]
[1748189356394,0.55,2506.0,2505.3,8.0]
[1748189356959,0.55,2506.3,2505.3,8.0]
[1748189357271,0.55,2506.1,2505.3,8.0]
[1748189357472,0.59988839,2506.1,2505.3,8.0]
[1748189357897,4.58288839,2506.1,2505.3,8.0]
[1748189358372,0.38076059,2506.0,2505.3,8.0]
[1748189358576,0.7513,2505.9,2505.3,8.0]
[1748189358899,0.7513,2505.8,2505.3,8.0]
[1748189359201,0.7513,2505.8,2505.2,4.574]
[1748189359698,0.7513,2505.6,2505.2,4.574]
[1748189360103,0.04989414,2505.5,2505.2,4.574]
[1748189360405,0.7513,2505.4,2505.2,4.574]
[1748189365439,0.7513,2505.7,2505.3,8.0]
[1748189366528,0.55,2505.6,2505.0,0.67008167]
[1748189366735,0.8236,2505.5,2505.4,4.575]
[1748189366910,0.8236,2505.5,2505.2,4.575]
[1748189367645,0.55,2505.4,2504.7,8.61]
[1748189367940,0.8236,2505.5,2505.1,4.575]
[1748189369139,0.8236,2505.5,2505.2,0.69471319]
[1748189369342,0.8236,2505.5,2505.2,8.69471319]
[1748189369530,4.8076,2505.8,2505.2,8.69471319]
[1748189371460,0.8236,2505.8,2505.2,8.69471319]
[1748189373760,1.34243606,2505.8,2505.2,8.69471319]
[1748189374859,1.34243606,2505.8,2505.2,0.69471319]
[1748189375057,1.34243606,2505.8,2505.3,4.571]
[1748189376482,0.8236,2505.8,2505.3,4.571]
[1748189381141,0.8236,2505.8,2505.4,8.0]
[1748189381350,0.38125906,2505.9,2505.4,10.19359486]
[1748189381550,3.984,2506.1,2505.4,10.19359486]
[1748189383478,3.984,2506.1,2505.4,2.19359486]
[1748189383704,0.47602,2506.0,2505.5,4.571]
[1748189387183,0.47602,2506.0,2505.2,0.8288]
[1748189387388,0.47602,2506.0,2505.6,4.571]
[1748189387758,0.7762,2506.2,2505.7,8.0]
[1748189388193,0.7751,2506.4,2505.7,8.0]
[1748189388352,4.7591,2506.4,2505.7,8.0]
[1748189388754,4.7591,2506.4,2505.6,0.7804]
[1748189389054,5.32332095,2506.4,2505.7,4.571]
[1748189389265,1.33932095,2506.4,2505.7,4.571]
[1748189389470,3.983,2506.3,2505.7,4.571]
[1748189390286,0.7751,2506.4,2505.7,4.571]
[1748189390474,4.7581,2506.4,2505.7,4.571]
[1748189394216,0.7751,2506.4,2505.7,4.571]
[1748189394363,4.7581,2506.4,2505.7,4.571]
[1748189396054,4.7581,2506.4,2505.6,0.7804]
[1748189396258,0.90496373,2506.3,2505.7,4.57]
[1748189396482,4.7581,2506.4,2505.8,8.0]
[1748189396870,4.29153732,2506.5,2505.8,8.0]
[1748189397075,8.27453732,2506.5,2505.9,0.7773]
[1748189397802,4.29153732,2506.5,2505.9,0.7773]
[1748189398107,3.983,2506.4,2505.9,0.7773]
[1748189398420,0.38123187,2506.7,2505.9,0.7773]
[1748189398573,0.38123187,2506.7,2506.0,0.69471319]
[1748189398574,0.38123187,2506.6,2506.0,0.69471319]
[1748189399700,0.7914,2506.3,2505.8,4.57]
[1748189399896,0.84127871,2506.3,2505.8,4.57]
[1748189400108,0.7914,2506.3,2505.8,4.57]
[1748189400405,4.29153732,2506.0,2505.8,4.57]
[1748189401593,0.7914,2506.3,2505.8,4.57]
[1748189401832,3.983,2506.2,2505.8,4.57]
[1748189401987,0.90659373,2506.1,2505.8,4.57]
[1748189402317,0.7914,2506.3,2505.8,4.57]
[1748189402492,4.7744,2506.3,2505.9,0.7642]
[1748189403594,3.983,2506.3,2505.9,0.7642]
[1748189405417,0.38123187,2506.5,2505.9,9.43428167]
[1748189405640,0.38123187,2506.5,2506.0,1.43504457]
[1748189405818,0.38123187,2506.5,2506.1,0.7551]
[1748189406021,0.38123187,2506.5,2506.2,1.42518167]
[1748189406717,4.033,2506.9,2506.2,0.7551]
[1748189407032,2.67612191,2506.8,2506.2,4.565]
[1748189407398,2.62625159,2506.8,2506.2,4.565]
[1748189408126,2.67612635,2506.8,2506.2,4.565]
[1748189408328,8.58551594,2506.7,2506.2,4.565]
[1748189408527,0.55,2506.6,2506.2,4.565]
[1748189408761,1.67117675,2506.6,2506.2,4.565]
[1748189409233,3.983,2506.5,2506.2,4.565]
[1748189409429,0.93123187,2506.7,2506.2,4.565]
[1748189409631,3.983,2506.5,2506.2,5.3201]
[1748189409947,0.93123187,2506.7,2506.2,5.3201]
[1748189410458,3.983,2506.6,2506.2,5.3201]
[1748189410628,4.36423187,2506.7,2506.2,5.3201]
[1748189410834,3.983,2506.7,2506.2,5.3201]
[1748189411053,4.63204835,2506.7,2506.2,4.565]
[1748189411624,0.64904835,2506.7,2506.2,4.565]
[1748189411824,3.983,2506.7,2506.2,4.565]
[1748189412153,0.8144,2506.8,2506.2,4.565]
[1748189412362,3.983,2506.7,2506.2,4.565]
[1748189413680,3.983,2506.7,2506.3,0.7561]
[1748189414265,0.05,2506.9,2506.3,0.7561]
[1748189415476,0.05,2506.9,2506.3,8.7561]
[1748189416585,0.05,2506.9,2506.4,0.67992723]
[1748189416895,0.05,2506.9,2506.5,0.7676]
[1748189422490,0.05,2506.9,2506.3,8.7556]
[1748189426883,0.05,2506.9,2506.3,8.67008167]
[1748189427197,0.05,2506.9,2506.5,0.7556]
[1748189427720,0.05,2506.9,2506.6,4.564]
[1748189430407,0.05,2506.9,2506.8,0.7961]
[1748189431990,0.05,2506.9,2506.7,8.0]
[1748189436195,0.05,2506.9,2506.8,4.556]
[1748189439878,0.05,2506.9,2506.3,0.7762]
[1748189440176,0.05,2506.9,2506.5,8.0]
[1748189442268,0.05,2506.9,2506.6,0.81]
[1748189442562,0.05,2506.9,2506.8,0.81]
[1748189442772,0.05,2506.9,2506.8,1.46054653]
[1748189443268,0.05,2506.9,2506.8,1.47036537]
[1748189443475,0.05,2506.9,2506.8,1.46054653]
[1748189446577,0.05,2506.9,2506.8,10.0533782]
[1748189447445,0.05,2506.9,2506.8,9.46054653]
[1748189447737,0.05,2506.9,2506.8,8.81]
[1748189449146,0.05,2506.9,2506.8,13.366]
[1748189449582,0.05,2506.9,2506.8,4.556]
[1748189450283,0.05,2506.9,2506.8,18.09736795]
[1748189450452,0.05,2506.9,2506.8,14.6315782]
[1748189450654,0.05,2506.9,2506.8,14.03874653]
[1748189450872,0.05,2506.9,2506.8,12.556]
[1748189456384,0.05,2506.9,2506.8,4.556]
[1748189460701,0.05,2506.9,2506.8,12.556]
[1748189460902,0.05,2506.9,2506.8,8.0]
[1748189461103,0.05,2506.9,2506.8,12.556]
[1748189464517,0.8184,2506.9,2506.8,12.556]
[1748189464924,0.05,2506.9,2506.8,12.556]
[1748189466240,0.05,2506.9,2506.4,0.8322]
[1748189466391,0.09986701,2506.9,2506.5,4.547]
[1748189466590,0.56564268,2506.9,2506.5,4.547]
[1748189467330,3.981,2506.8,2506.5,4.547]
[1748189467540,0.759,2506.7,2506.5,4.547]
[1748189468791,0.759,2506.7,2506.1,8.6]
[1748189468997,0.759,2506.7,2506.2,12.547]
[1748189469236,0.90281598,2506.6,2506.2,12.547]
[1748189469532,0.759,2506.7,2506.2,12.547]
[1748189469838,4.28815977,2506.4,2506.1,8.6]
[1748189470044,4.78987851,2506.3,2506.0,1.95149171]
[1748189470354,0.759,2506.1,2505.8,1.95149171]
[1748189470644,1.3313,2505.9,2505.8,1.95149171]
[1748189470793,5.3123,2505.9,2505.8,1.95149171]
[1748189470995,5.76565603,2505.9,2505.8,1.95149171]
[1748189471194,17.75623825,2505.9,2505.8,1.95149171]
[1748189471392,20.92678929,2505.9,2505.8,1.95149171]
[1748189471626,3.99147328,2505.4,2505.1,2.56571229]
[1748189471811,27.09620707,2505.9,2505.1,2.56571229]
[1748189471812,5.61945977,2505.2,2505.1,2.56571229]
[1748189472011,9.66106326,2505.2,2505.1,2.56571229]
[1748189472225,11.37451777,2505.2,2505.1,2.56571229]
[1748189473046,7.38282051,2505.2,2505.1,2.56571229]
[1748189473365,11.74534061,2505.2,2505.1,2.56571229]
[1748189474006,16.05155912,2505.2,2505.1,2.56571229]
[1748189474543,7.07766074,2505.2,2505.1,2.56571229]
[1748189474833,5.3143,2505.2,2505.1,2.56571229]
[1748189477315,0.55,2505.1,2504.3,8.0]
[1748189478030,0.59990838,2505.1,2504.3,8.0]
[1748189478254,1.08642084,2505.1,2504.3,8.0]
[1748189478630,1.1363292,2505.1,2504.3,8.0]
[1748189478832,1.08642084,2505.1,2504.3,8.0]
[1748189479249,1.13632917,2505.1,2504.2,0.7872]
[1748189479571,1.3436,2504.9,2504.3,4.55]
[1748189479711,4.03391314,2504.8,2504.3,4.55]
[1748189479913,0.55,2504.7,2504.3,4.55]
[1748189480111,0.7936,2504.9,2504.3,4.55]
[1748189480311,3.984,2504.8,2504.3,4.55]
[1748189482856,4.51166876,2504.8,2504.3,4.551]
[1748189483153,0.55,2504.7,2504.3,4.551]
[1748189483325,0.8041,2504.6,2504.3,4.551]
[1748189484530,0.8041,2504.4,2504.3,4.551]
[1748189485342,0.769,2504.7,2504.3,4.551]
[1748189485658,3.984,2504.7,2504.3,5.3621]
[1748189486154,3.985,2504.8,2504.3,5.3621]
[1748189489165,0.769,2505.0,2504.3,5.3621]
[1748189489332,3.985,2504.9,2504.4,8.0]
[1748189491036,0.04990621,2504.8,2504.4,8.0]
[1748189491866,0.753,2504.7,2504.4,8.0]
[1748189492172,5.1365,2504.9,2504.4,4.551]
[1748189497880,0.55,2504.8,2504.1,0.865]
[1748189498081,0.55,2504.6,2504.2,4.542]
[1748189498238,0.7865,2504.4,2504.2,4.542]
[1748189498439,4.7715,2504.4,2504.2,4.542]
[1748189499865,4.7715,2504.4,2504.1,0.05]
[1748189500094,0.52706919,2504.3,2504.1,0.05]
[1748189500266,0.47715,2504.3,2504.1,0.05]
[1748189500792,5.65181408,2504.2,2504.1,0.05]
[1748189501151,6.0333877,2504.2,2504.1,0.05]
[1748189501365,1.73457362,2504.2,2504.1,0.05]
[1748189501696,2.83138451,2504.2,2504.1,0.05]
[1748189507796,6.26738451,2504.2,2504.1,0.05]
[1748189508292,6.81738451,2504.2,2504.1,0.05]
[1748189510264,6.86731015,2504.2,2504.1,0.05]
[1748189510464,10.86060142,2504.2,2504.1,0.05]
[1748189510716,10.81067578,2504.2,2504.1,0.05]
[1748189511064,6.81738451,2504.2,2504.1,0.05]
[1748189511266,11.19342388,2504.2,2504.1,0.05]
[1748189511508,11.14349252,2504.2,2504.1,0.05]
[1748189513103,11.61606367,2504.2,2504.1,0.05]
[1748189514199,7.6227724,2504.2,2504.1,0.05]
[1748189514558,11.14349252,2504.2,2504.1,0.05]
[1748189514970,7.15020125,2504.2,2504.1,0.05]
[1748189515614,13.32420125,2504.2,2504.1,0.05]
[1748189515919,17.31120125,2504.2,2504.1,0.05]
[1748189518983,21.30449252,2504.2,2504.1,0.05]
[1748189520313,29.30449252,2504.2,2504.1,0.05]
[1748189520498,31.70049252,2504.2,2504.1,0.05]
[1748189520704,29.30449252,2504.2,2504.1,0.05]
[1748189521925,33.60605726,2504.2,2504.1,0.05]
[1748189523130,15.95820125,2504.2,2504.1,0.05]
[1748189523331,14.86139036,2504.2,2504.1,0.05]
[1748189523532,10.87439036,2504.2,2504.1,0.05]
[1748189523826,15.41139036,2504.2,2504.1,0.05]
[1748189524034,14.86139036,2504.2,2504.1,0.05]
[1748189524235,0.33281674,2504.2,2504.1,0.8351]
[1748189525606,3.987,2504.6,2504.1,0.8351]
[1748189527395,0.55,2504.5,2504.1,0.8351]
[1748189527603,0.8313,2504.5,2504.1,0.05]
[1748189527791,0.55,2504.5,2504.1,0.05]
[1748189528456,0.55,2504.3,2504.1,0.05]
[1748189528610,0.04992212,2504.2,2504.1,0.05]
[1748189528930,0.55,2504.3,2504.1,0.05]
[1748189529345,0.04992667,2504.2,2504.1,0.05]
[1748189529501,0.55,2504.3,2504.1,0.05]
[1748189529706,1.50261374,2504.3,2504.1,0.05]
[1748189530047,0.93120261,2504.2,2504.1,0.05]
[1748189532840,0.93120261,2504.2,2504.1,0.05]
[1748189533647,0.38120261,2504.2,2504.1,0.05]
[1748189533849,4.36820261,2504.2,2504.1,0.05]
[1748189534605,0.38120261,2504.4,2504.2,0.8301]
[1748189534809,3.987,2504.3,2504.2,0.8301]
[1748189535009,3.987,2504.3,2504.1,0.05]
[1748189535246,4.42382026,2504.3,2504.1,0.05]
[1748189535450,0.55,2504.2,2504.1,0.05]
[1748189536152,4.536,2504.2,2504.1,0.05]
[1748189539460,0.55,2504.2,2504.1,0.05]
[1748189539658,4.536,2504.2,2504.1,0.05]
[1748189541359,0.38120261,2504.5,2504.1,0.05]
[1748189541565,3.986,2504.4,2504.1,0.05]
[1748189541765,4.80891517,2504.4,2504.1,0.05]
[1748189542358,0.82291517,2504.4,2504.1,0.05]
[1748189542660,3.986,2504.3,2504.1,0.05]
[1748189543152,0.55,2504.4,2504.1,0.05]
[1748189543358,3.986,2504.2,2504.1,0.05]
[1748189543661,3.986,2504.3,2504.1,0.05]
[1748189545256,0.38120261,2504.6,2504.2,0.8301]
[1748189545586,3.986,2504.5,2504.2,1.20533468]
[1748189545883,0.8152,2504.9,2504.2,1.20533468]
[1748189546041,0.55,2504.7,2504.2,1.20533468]
[1748189546241,0.53512,2504.7,2504.3,0.37523468]
[1748189546680,0.55,2504.8,2504.3,0.37523468]
[1748189546845,3.986,2504.7,2504.3,0.37523468]
[1748189547044,0.55,2504.8,2504.3,0.37523468]
[1748189547378,3.986,2504.7,2504.3,0.37523468]
[1748189547567,3.986,2504.7,2504.2,0.8301]
[1748189547776,0.8152,2505.4,2504.2,0.8301]
[1748189547980,4.29616847,2505.2,2504.2,0.8301]
[1748189548536,1.20748503,2505.4,2504.3,0.8301]
[1748189548641,3.986,2505.1,2504.3,0.8301]
[1748189548841,1.20748503,2505.4,2504.3,0.8301]
[1748189549140,0.39228503,2505.4,2504.3,0.8301]
[1748189549345,4.536,2505.3,2504.4,0.8301]
[1748189549568,4.536,2505.3,2504.6,0.8301]
[1748189549769,4.9896,2505.3,2504.6,0.8301]
[1748189550375,4.9896,2505.3,2504.7,0.37467706]
[1748189551105,4.9896,2505.3,2504.7,4.90767706]
[1748189551106,4.34607189,2505.2,2504.7,4.90767706]
[1748189551399,4.29616847,2504.9,2504.6,0.8301]
[1748189551562,0.04990837,2504.8,2504.6,0.8301]
[1748189552309,0.98460768,2504.8,2504.4,0.8009]
[1748189552479,3.986,2504.7,2504.4,0.8009]
[1748189554619,0.7598,2504.6,2504.2,4.533]
[1748189554765,3.986,2504.7,2504.2,4.533]
[1748189555115,0.55,2504.6,2504.1,4.583]
[1748189555320,1.12803207,2504.6,2504.1,4.583]
[1748189559291,1.17795021,2504.6,2504.1,4.583]
[1748189559779,9.96325524,2504.2,2504.1,0.05]
[1748189559983,13.94925524,2504.2,2504.1,0.05]
[1748189560196,7.1490304,2504.2,2504.1,0.05]
[1748189560417,5.3548,2504.2,2504.1,0.05]
[1748189562581,9.3980202,2504.2,2504.1,0.05]
[1748189562782,25.94254651,2504.2,2504.1,0.05]
[1748189564698,21.94925524,2504.2,2504.1,0.05]
[1748189565148,0.797,2503.8,2503.1,0.05]
[1748189565437,8.51683137,2504.5,2503.1,0.05]
[1748189565438,1.347,2503.4,2503.1,0.05]
[1748189565593,1.04408845,2503.3,2503.1,0.05]
[1748189565795,3.987,2503.2,2503.1,0.05]
[1748189566512,4.537,2503.2,2503.1,0.05]